bitfinex/quotes_ETHUSD_20260226
["timestamp","ask_amount","ask_price","bid_price","bid_amount"]
[1772139081297,1.44344436,2029.0,2028.7,1.03589926]
[1772139081499,1.03485647,2028.7,2028.1,1.03489926]
[1772139081816,1.44344436,2028.6,2028.1,1.03489926]
[1772139082694,1.03485647,2028.5,2028.1,2.26757827]
[1772139082895,1.03485647,2028.5,2028.2,1.03489926]
[1772139083097,1.64099504,2028.6,2028.2,1.03489926]
[1772139083298,2.26726362,2028.6,2028.2,1.03489926]
[1772139084420,2.26726362,2028.6,2027.5,1.03489926]
[1772139084421,1.03485647,2028.2,2027.5,1.03489926]
[1772139084610,5.04958273,2028.6,2027.1,2.26818819]
[1772139084611,1.03485647,2027.8,2027.1,2.26818819]
[1772139084796,1.03485647,2027.8,2027.2,1.03489926]
[1772139086624,2.26777589,2027.8,2027.3,1.03489926]
[1772139087095,1.03485647,2027.6,2026.7,1.03489926]
[1772139087814,1.03485647,2027.3,2026.7,1.03489926]
[1772139088208,1.682,2027.5,2026.7,1.03489926]
[1772139088209,2.71685647,2027.5,2026.7,1.03489926]
[1772139088427,1.682,2027.5,2026.7,1.03489926]
[1772139088633,1.03485647,2027.4,2026.7,1.03489926]
[1772139088808,1.03485647,2027.4,2026.9,1.03489926]
[1772139089003,1.682,2027.5,2026.9,1.03489926]
[1772139089216,2.91507657,2027.5,2026.9,1.03489926]
[1772139089420,1.682,2027.5,2026.9,1.03489926]
[1772139089998,1.36453515,2027.3,2026.6,0.88519837]
[1772139090237,1.03485647,2027.2,2026.6,2.11878832]
[1772139090436,1.03485647,2027.2,2026.4,2.11886961]
[1772139090938,1.03485647,2027.2,2026.5,0.88519837]
[1772139091815,1.03485647,2027.5,2026.7,0.61563256]
[1772139093130,1.03485647,2027.7,2026.9,0.48316736]
[1772139093328,1.03485647,2027.6,2026.7,0.48316736]
[1772139093555,1.03485647,2027.8,2026.7,0.48316736]
[1772139094039,1.03485647,2027.8,2026.9,0.48316736]
[1772139094418,1.03485647,2027.8,2027.0,0.35222364]
[1772139095039,1.03485647,2027.8,2026.6,4.93388592]
[1772139095040,1.03485647,2027.2,2026.4,4.93485032]
[1772139095234,1.03485647,2027.0,2026.2,0.22278395]
[1772139096934,0.47330347,2026.8,2026.2,0.22278395]
[1772139097126,0.47330347,2026.8,2026.2,1.45661442]
[1772139097915,0.47330347,2027.0,2026.3,0.21000555]
[1772139098805,3.38553662,2027.2,2026.5,0.21000555]
[1772139099010,2.15230347,2027.2,2026.5,0.21000555]
[1772139099513,2.15230347,2027.2,2026.4,1.23481496]
[1772139099514,0.47330347,2027.1,2026.4,0.0011]
[1772139099728,0.47330347,2027.1,2026.4,0.21110555]
[1772139100736,0.45228057,2027.0,2026.4,0.0011]
[1772139100937,0.45228057,2027.0,2026.4,0.21110555]
[1772139102112,0.45228057,2027.0,2026.4,0.0011]
[1772139102735,1.23340911,2027.0,2026.4,0.0011]
[1772139102937,0.45228057,2026.9,2026.4,0.0011]
[1772139103441,0.45228057,2026.9,2025.9,4.93716634]
[1772139103442,0.45228057,2026.4,2025.9,0.0011]
[1772139103735,0.45228057,2026.6,2025.9,1.44511908]
[1772139103936,0.45228057,2026.6,2025.9,0.21110555]
[1772139105028,1.68593465,2026.5,2025.9,0.21110555]
[1772139105221,1.68593465,2026.5,2025.9,0.0011]
[1772139105222,0.45228057,2026.4,2025.9,0.0011]
[1772139105420,0.45228057,2025.9,2025.1,1.22919473]
[1772139107335,0.45228057,2025.9,2024.9,4.93802775]
[1772139109340,0.45228057,2025.9,2024.9,6.3025629]
[1772139110041,0.45228057,2025.9,2025.2,1.36453515]
[1772139110438,1.23381614,2026.3,2025.2,1.36453515]
[1772139110640,0.5,2026.2,2025.2,1.36453515]
[1772139111016,0.5,2026.2,2025.1,0.0011]
[1772139111638,0.5,2026.1,2025.1,1.23560693]
[1772139113145,0.5,2026.1,2025.1,0.98560693]
[1772139113735,0.5,2026.0,2025.1,0.98560693]
[1772139116244,0.5,2026.2,2025.2,1.36453515]
[1772139116430,0.5,2026.2,2025.5,1.36453515]
[1772139118547,0.5,2026.2,2025.6,1.23420221]
[1772139119548,0.5,2026.1,2025.6,1.23420221]
[1772139119947,0.5,2026.1,2025.4,4.93698478]
[1772139119948,0.5,2026.1,2025.4,1.36453515]
[1772139120357,0.5,2026.1,2025.1,4.93791599]
[1772139120561,0.5,2026.1,2025.1,6.30245114]
[1772139121542,4.93392442,2026.8,2025.7,1.36453515]
[1772139121543,0.5,2026.3,2025.7,1.36453515]
[1772139121937,0.5,2026.3,2025.4,1.36453515]
[1772139122460,0.5,2026.3,2025.1,6.30245114]
[1772139123586,0.5,2026.3,2025.7,1.36453515]
[1772139123741,0.5,2027.3,2026.0,1.36453515]
[1772139127046,0.5,2027.3,2026.1,1.23389763]
[1772139127047,0.5,2027.1,2026.1,1.23389763]
[1772139130860,0.5,2027.0,2026.1,1.23389763]
[1772139136373,0.501,2026.8,2026.1,1.23389763]
[1772139140060,0.5,2026.6,2025.9,1.23401944]
[1772139141177,0.10783224,2026.7,2026.1,0.46442027]
[1772139142757,0.10783224,2026.7,2026.3,0.46442027]
[1772139145886,0.10783224,2026.7,2026.4,1.23371496]
[1772139146679,0.10783224,2027.3,2026.6,0.46442027]
[1772139146986,0.10783224,2027.3,2026.4,2.59825011]
[1772139146987,0.10783224,2027.7,2026.5,0.46442027]
[1772139147179,0.10783224,2027.5,2026.5,0.46442027]
[1772139148093,0.10783224,2027.3,2026.6,1.69801348]
[1772139149574,0.10783224,2027.3,2026.7,0.46442027]
[1772139149772,0.10783224,2028.0,2026.7,0.46442027]
[1772139149982,0.10783224,2027.8,2027.0,0.46442027]
[1772139150771,0.10783224,2028.0,2027.1,0.46442027]
[1772139151679,0.10783224,2028.0,2027.2,0.46442027]
[1772139151992,1.23358431,2028.3,2027.2,0.46442027]
[1772139152188,0.10783224,2028.2,2027.4,0.46442027]
[1772139152391,0.001,2028.3,2027.4,0.46442027]
[1772139152574,0.10883224,2028.3,2027.4,0.46442027]
[1772139153881,0.10783224,2028.2,2027.4,0.46442027]
[1772139154086,0.10783224,2028.2,2027.6,0.46442027]
[1772139155868,1.34046395,2028.2,2027.6,0.46442027]
[1772139156183,0.10783224,2028.2,2027.6,0.46442027]
[1772139156364,0.10783224,2028.2,2027.7,1.232924]
[1772139158000,1.34045315,2028.2,2027.7,1.232924]
[1772139158295,1.23262091,2028.2,2027.7,1.232924]
[1772139158487,0.10783224,2028.1,2027.7,1.232924]
[1772139158995,0.10783224,2028.1,2027.7,1.68943743]
[1772139159769,0.10883224,2028.1,2027.7,1.68943743]
[1772139162099,0.10783224,2028.0,2027.5,1.70783266]
[1772139163382,0.10783224,2028.0,2027.6,0.4748162]
[1772139164889,0.001,2028.1,2027.6,1.7077719]
[1772139165097,0.10883224,2028.1,2027.6,1.7077719]
[1772139165604,0.10883224,2028.1,2027.1,6.38169873]
[1772139165605,0.10883224,2028.1,2027.4,1.23308151]
[1772139165977,0.10883224,2028.1,2027.4,1.70789771]
[1772139167789,0.10783224,2027.9,2027.4,0.4748162]
[1772139169812,1.2328632,2027.8,2027.4,0.4748162]
[1772139170298,0.10783224,2027.7,2027.2,1.23317877]
[1772139170502,0.10783224,2027.7,2027.2,1.70802801]
[1772139170698,0.10783224,2027.7,2027.2,0.4748162]
[1772139170885,0.10783224,2027.7,2027.1,1.449]
[1772139171087,0.10783224,2027.7,2027.1,2.68228193]
[1772139171706,0.10783224,2027.7,2027.0,0.0011]
[1772139171873,0.10783224,2027.5,2027.0,0.0011]
[1772139174207,0.10783224,2027.4,2027.0,0.0011]
[1772139176291,1.34099243,2027.4,2027.0,0.0011]
[1772139176607,0.10783224,2027.3,2027.0,0.0011]
[1772139179110,4.93269706,2027.7,2027.1,0.4748162]
[1772139179111,1.34179388,2027.7,2027.1,0.4748162]
[1772139179409,0.10783224,2027.6,2027.1,0.4748162]
[1772139181314,1.23304562,2027.5,2027.0,0.0011]
[1772139181497,0.10783224,2027.4,2027.0,0.0011]
[1772139181697,0.10783224,2027.4,2027.0,0.4759162]
[1772139182193,0.10783224,2027.4,2027.0,0.0011]
[1772139182712,0.10783224,2027.4,2026.8,0.0011]
[1772139183494,1.23316726,2027.3,2026.8,0.0011]
[1772139183809,0.10673224,2027.2,2027.0,0.0011]
[1772139187841,1.33998029,2027.2,2027.0,0.0011]
[1772139188709,1.33998029,2027.2,2026.8,0.4759162]
[1772139188710,0.10563224,2027.1,2026.8,0.0011]
[1772139188899,0.10563224,2027.1,2026.5,0.4759162]
[1772139189098,0.10563224,2026.9,2026.5,0.4759162]
[1772139189514,0.10563224,2026.9,2026.5,0.0011]
[1772139192042,0.10563224,2026.7,2026.0,0.46269488]
[1772139195843,0.10563224,2027.5,2026.7,0.46379488]
[1772139196140,0.001,2027.0,2026.7,0.46379488]
[1772139201544,0.10663224,2027.0,2026.7,0.0011]
[1772139203444,0.10563224,2026.8,2026.7,0.0011]
[1772139204024,0.10563224,2026.8,2026.5,0.0011]
[1772139205235,0.10563224,2026.8,2026.2,0.0011]
[1772139205430,1.23341062,2026.9,2026.2,1.69762498]
[1772139205641,1.33794286,2026.9,2026.3,0.46269488]
[1772139208459,1.632,2027.0,2026.4,0.46269488]
[1772139208659,0.001,2027.0,2026.5,0.46269488]
[1772139208961,0.001,2027.0,2026.5,0.46379488]
[1772139209333,0.001,2026.8,2026.5,0.46379488]
[1772139210742,0.001,2026.8,2026.6,1.23359321]
[1772139211051,0.001,2026.8,2026.7,0.46269488]
[1772139211441,0.001,2026.8,2026.5,1.23470588]
[1772139211442,0.001,2026.8,2026.5,0.0011]
[1772139211639,0.10453224,2026.7,2026.3,0.0011]
[1772139212868,1.23359321,2026.6,2026.3,0.0011]
[1772139216643,0.10343224,2026.5,2026.2,0.0011]
[1772139216857,1.23359321,2026.6,2026.2,0.0011]
[1772139217448,1.33702545,2026.6,2026.2,0.0011]
[1772139217962,1.23357877,2026.7,2026.2,0.46007758]
[1772139218138,1.33701101,2026.7,2026.2,0.46007758]
[1772139219746,1.23451954,2026.8,2026.3,0.45306388]
[1772139219934,1.23447237,2026.8,2026.3,0.45306388]
[1772139220159,0.001,2026.8,2026.3,0.45306388]
[1772139220846,0.001,2026.8,2026.4,0.45306388]
[1772139221659,0.001,2026.8,2026.4,0.45416388]
[1772139223569,0.001,2027.0,2026.7,0.45306388]
[1772139226568,0.001,2027.0,2026.5,1.68671741]
[1772139227062,0.001,2027.0,2026.6,0.45306388]
[1772139232074,0.001,2027.0,2026.5,1.23364833]
[1772139232075,0.10543224,2027.0,2026.5,0.45306388]
[1772139232877,0.10543224,2027.0,2026.4,0.0011]
[1772139233173,0.10543224,2027.0,2026.4,0.45416388]
[1772139233377,0.10543224,2027.0,2026.5,0.45306388]
[1772139234080,1.23341062,2026.9,2026.5,0.45306388]
[1772139234282,0.10443224,2026.8,2026.4,0.0011]
[1772139234460,0.10543224,2026.8,2026.4,0.0011]
[1772139234662,0.10543224,2026.8,2026.5,0.0011]
[1772139237254,1.23353234,2026.7,2026.5,0.0011]
[1772139240774,0.001,2026.8,2026.5,0.0011]
[1772139240979,1.23435509,2027.0,2026.7,0.45306388]
[1772139241189,1.33868733,2027.0,2026.5,0.45416388]
[1772139241390,0.10433224,2026.9,2026.5,0.45416388]
[1772139242266,1.50653138,2026.8,2026.5,0.45416388]
[1772139242676,1.33778631,2026.9,2026.5,0.45416388]
[1772139243075,0.10433224,2026.9,2026.5,0.45416388]
[1772139243254,0.10433224,2026.9,2026.6,0.45306388]
[1772139243460,1.507414,2027.0,2026.6,0.45306388]
[1772139244179,0.001,2027.0,2026.6,0.45306388]
[1772139244385,0.001,2027.0,2026.7,0.45306388]
[1772139244586,0.10533224,2027.0,2026.7,0.45306388]
[1772139246488,1.61179673,2027.0,2026.8,0.0011]
[1772139247365,1.33873683,2027.0,2026.8,0.0011]
[1772139250196,4.93330482,2027.1,2026.8,0.0011]
[1772139250374,4.2413,2027.2,2026.8,0.0011]
[1772139250996,1.23328893,2027.1,2026.8,0.0011]
[1772139253099,1.643,2027.1,2026.8,0.0011]
[1772139254297,0.45306388,2027.0,2026.6,0.48694876]
[1772139254597,1.643,2027.1,2025.6,0.48694876]
[1772139254598,30.0,2026.6,2025.6,0.48694876]
[1772139254774,4.09582971,2026.8,2025.6,0.48694876]
[1772139254775,0.49088956,2026.1,2025.6,0.48694876]
[1772139254966,0.49088956,2026.1,2025.7,0.48694876]
[1772139255170,4.93534022,2026.3,2025.9,0.48804876]
[1772139255376,8.434906,2026.5,2025.9,0.48804876]
[1772139255377,2.87765493,2026.5,2025.9,0.48804876]
[1772139255910,3.36854449,2026.5,2025.9,0.48804876]
[1772139256990,2.87765493,2026.5,2025.9,0.48804876]
[1772139257172,0.49088956,2026.3,2025.4,1.23432408]
[1772139257374,0.5,2026.1,2025.3,0.0011]
[1772139259293,1.23395853,2026.0,2025.3,0.0011]
[1772139259681,1.73394511,2026.1,2025.9,0.0011]
[1772139260098,1.36527657,2026.4,2025.9,0.0011]
[1772139260099,0.5,2026.3,2025.9,0.0011]
[1772139260401,1.23374816,2026.4,2025.9,0.0011]
[1772139260596,0.5,2026.3,2025.9,0.0011]
[1772139261379,0.5,2026.3,2025.6,0.0011]
[1772139261588,0.5,2026.1,2025.6,0.0011]
[1772139262978,1.73382028,2026.3,2025.6,0.0011]
[1772139263910,0.5,2026.2,2025.6,0.0011]
[1772139266115,0.5,2026.4,2025.6,0.0011]
[1772139267384,0.77328177,2026.2,2025.6,0.0011]
[1772139269398,1.7338787,2026.2,2025.6,0.0011]
[1772139270309,1.73383871,2026.2,2025.6,0.0011]
[1772139272104,0.001,2026.0,2025.6,0.0011]
[1772139280130,0.001,2026.0,2025.6,1.23530221]
[1772139280332,0.001,2026.8,2025.8,1.91293301]
[1772139280540,0.5,2026.6,2025.6,1.23530221]
[1772139282831,0.001,2026.5,2025.6,0.0011]
[1772139283030,0.001,2026.5,2025.6,1.91403301]
[1772139283822,0.501,2026.5,2025.6,1.91403301]
[1772139284230,0.501,2026.5,2025.8,0.0011]
[1772139284404,0.001,2026.4,2025.8,0.0011]
[1772139287903,0.001,2026.3,2025.8,0.0011]
[1772139292848,0.001,2026.2,2025.8,0.0011]
[1772139294346,0.001,2026.1,2025.8,0.0011]
[1772139294542,0.001,2026.3,2025.9,0.40972556]
[1772139295655,0.001,2026.4,2025.9,0.40972556]
[1772139295823,0.001,2026.3,2026.0,1.23395853]
[1772139296030,0.001,2026.3,2026.0,1.23505853]
[1772139296357,0.001,2026.1,2026.0,1.23505853]
[1772139296557,0.001,2026.4,2026.0,1.23505853]
[1772139296851,0.001,2026.3,2026.0,1.23505853]
[1772139298954,0.001,2026.4,2026.0,1.23505853]
[1772139299127,0.001,2026.3,2026.0,1.23505853]
[1772139299950,0.001,2026.4,2026.0,1.23505853]
[1772139300153,0.001,2026.3,2026.0,1.23505853]
[1772139300318,0.001,2026.8,2026.3,0.14900708]
[1772139300520,0.45236242,2027.3,2026.7,0.55873264]
[1772139300852,0.45236242,2027.3,2026.8,0.14900708]
[1772139301015,0.45236242,2027.4,2026.6,1.38260029]
[1772139301221,0.45236242,2027.4,2026.7,0.14900708]
[1772139301819,0.45236242,2027.2,2026.7,0.14900708]
[1772139303055,0.45236242,2027.2,2026.7,1.38251865]
[1772139303286,0.001,2027.7,2027.2,0.14900708]
[1772139303556,0.001,2028.1,2027.7,0.14900708]
[1772139303718,0.001,2028.1,2027.4,0.40972556]
[1772139303719,0.45236242,2028.0,2027.4,0.14900708]
[1772139303920,0.45236242,2027.9,2027.2,0.94800708]
[1772139304345,0.45236242,2027.9,2027.3,0.14900708]
[1772139304548,0.45236242,2028.0,2027.4,0.14900708]
[1772139304960,0.45236242,2028.0,2027.5,1.23304562]
[1772139305465,0.45236242,2028.0,2027.0,1.38229601]
[1772139305466,0.45236242,2027.9,2027.0,1.38229601]
[1772139305671,0.45236242,2027.7,2027.0,1.38231085]
[1772139305950,0.45236242,2027.7,2027.0,1.23330377]
[1772139306734,0.45236242,2027.7,2027.0,1.38231085]
[1772139307251,0.45236242,2027.6,2027.0,1.38231085]
[1772139307451,0.45236242,2027.6,2026.9,2.65936287]
[1772139308330,0.45236242,2027.6,2026.9,1.426]
[1772139308527,0.45236242,2027.6,2026.9,2.65940273]
[1772139308729,0.45236242,2027.6,2027.4,0.0011]
[1772139309938,1.71641566,2027.5,2027.4,0.0011]
[1772139311307,0.001,2027.8,2027.4,0.0011]
[1772139311308,0.48437004,2027.8,2027.4,0.0011]
[1772139311432,0.48337004,2027.7,2027.4,0.0011]
[1772139312157,1.71629808,2027.7,2027.4,0.0011]
[1772139312337,0.48337004,2027.7,2027.4,0.0011]
[1772139312738,0.48337004,2027.6,2027.1,1.38334737]
[1772139312939,0.48337004,2027.6,2027.1,1.23434029]
[1772139313178,0.001,2027.8,2027.2,0.47797054]
[1772139313469,0.48337004,2027.7,2027.2,0.47797054]
[1772139314738,0.48337004,2027.7,2027.1,0.0011]
[1772139314739,0.48337004,2027.6,2027.1,0.0011]
[1772139315057,0.48337004,2027.2,2026.3,1.71170547]
[1772139315654,0.48337004,2027.2,2026.4,0.47797054]
[1772139317384,0.48337004,2027.0,2026.4,1.71167954]
[1772139318067,0.48337004,2027.0,2026.4,0.47797054]
[1772139318269,0.48337004,2027.0,2026.3,1.23372967]
[1772139318482,0.48337004,2026.9,2026.0,1.7129823]
[1772139318682,0.48337004,2026.9,2026.0,0.0011]
[1772139318857,0.48337004,2026.9,2026.0,1.71302571]
[1772139319059,0.48337004,2026.9,2026.1,0.47797054]
[1772139319885,0.48337004,2026.7,2026.1,1.71182558]
[1772139320079,0.48337004,2026.7,2026.0,1.23502529]
[1772139320282,0.48337004,2026.7,2026.2,0.0011]
[1772139320968,0.48337004,2026.7,2026.0,0.0011]
[1772139321983,0.48337004,2026.5,2026.0,0.0011]
[1772139325570,0.48337004,2026.7,2026.0,0.47907054]
[1772139328602,0.48337004,2026.9,2026.2,0.47797054]
[1772139328809,0.48337004,2027.4,2026.4,0.47797054]
[1772139329471,0.48337004,2027.6,2026.4,0.47797054]
[1772139330199,0.48437004,2027.8,2027.0,0.47797054]
[1772139330586,0.48437004,2027.8,2027.1,1.71125947]
[1772139330795,1.71723393,2027.8,2027.1,1.71125947]
[1772139331001,0.48337004,2027.7,2027.1,1.71125947]
[1772139332309,0.001,2027.4,2027.1,1.71125947]
[1772139335015,0.001,2027.4,2027.1,0.47797054]
[1772139335324,0.001,2027.4,2027.1,1.71125895]
[1772139336589,0.001,2027.4,2027.2,0.48571896]
[1772139337920,0.46610185,2027.4,2026.8,1.71919044]
[1772139338093,0.46610185,2027.4,2026.9,0.48571896]
[1772139338716,0.46610185,2027.4,2027.0,1.23334977]
[1772139339397,0.001,2027.4,2027.1,0.48571896]
[1772139340797,0.001,2027.4,2027.2,1.71654378]
[1772139341530,0.001,2027.4,2025.8,1.66884617]
[1772139341531,0.4605586,2027.3,2026.2,1.71822888]
[1772139341699,0.4605586,2027.3,2026.3,0.48331569]
[1772139343122,0.4605586,2027.1,2026.4,1.71703065]
[1772139343911,0.4605586,2027.1,2026.4,1.71813065]
[1772139346137,0.4605586,2026.9,2026.4,0.0011]
[1772139346434,0.4605586,2026.9,2026.4,1.23481326]
[1772139348238,0.4605586,2026.9,2026.4,1.71812895]
[1772139348534,0.4615586,2027.2,2026.5,0.48331569]
[1772139351414,0.001,2027.2,2026.7,0.48331569]
[1772139353733,0.001,2027.2,2026.9,0.48331569]
[1772139356031,0.001,2027.2,2027.0,1.23334977]
[1772139356359,0.001,2027.2,2026.9,1.71667679]
[1772139356936,0.001,2027.0,2026.9,1.71667679]
[1772139365547,0.001,2027.2,2027.0,0.48331569]
[1772139366947,0.4615586,2027.8,2027.1,0.48331569]
[1772139367522,0.4605586,2027.7,2027.2,1.71654378]
[1772139368645,0.001,2027.5,2027.4,1.84744341]
[1772139368855,0.4605586,2028.0,2027.3,1.91631569]
[1772139369224,0.4605586,2028.0,2027.4,0.48331569]
[1772139369424,0.4605586,2028.0,2027.3,2.66614986]
[1772139369425,0.4605586,2027.8,2027.3,2.66614986]
[1772139369647,0.4605586,2027.8,2027.1,2.66625729]
[1772139370050,0.4605586,2027.8,2027.1,2.66626128]
[1772139371220,0.4605586,2027.8,2027.1,1.433]
[1772139371447,1.232924,2027.7,2027.1,2.66627754]
[1772139371639,0.48093131,2027.6,2027.1,2.66627754]
[1772139371839,0.48093131,2027.6,2027.1,1.433]
[1772139372035,0.48093131,2027.6,2027.1,3.16500413]
[1772139372645,0.48093131,2027.6,2027.2,0.49871547]
[1772139373552,0.48093131,2027.6,2027.2,1.73190697]
[1772139374743,0.48093131,2027.6,2027.2,1.73194202]
[1772139375057,0.48093131,2027.6,2027.2,0.49871547]
[1772139375350,0.48093131,2027.5,2027.1,1.433]
[1772139375523,0.48093131,2027.3,2026.8,1.23342577]
[1772139375730,0.48093131,2027.3,2026.8,1.73214124]
[1772139380162,0.001,2027.1,2026.8,1.73214124]
[1772139380330,0.001,2027.1,2026.9,0.49871547]
[1772139383239,0.001,2027.1,2026.9,1.73208785]
[1772139387939,0.48093131,2027.4,2027.1,0.49871547]
[1772139389862,0.48093131,2027.4,2027.2,1.23322809]
[1772139391652,0.48093131,2027.4,2027.1,0.49871547]
[1772139391855,0.48093131,2027.4,2027.1,1.73199814]
[1772139392044,0.001,2027.3,2027.1,1.73199814]
[1772139393890,0.001,2027.3,2027.2,0.49871547]
[1772139394474,0.001,2027.3,2027.2,1.73194356]
[1772139395980,0.001,2027.3,2027.2,0.49871547]
[1772139397454,0.001,2027.3,2027.0,0.0011]
[1772139397455,0.4545015,2027.2,2027.0,0.0011]
[1772139401881,0.001,2027.3,2027.0,0.48467114]
[1772139401882,0.45470837,2027.3,2027.0,0.48467114]
[1772139402083,0.45370837,2027.5,2027.1,0.48357114]
[1772139403153,0.45370837,2027.7,2027.0,0.0011]
[1772139403368,0.45370837,2027.4,2027.0,0.0011]
[1772139403753,0.45370837,2027.4,2027.2,0.0011]
[1772139403956,0.45370837,2027.2,2027.0,0.0011]
[1772139404184,0.001,2027.1,2027.0,0.0011]
[1772139411390,0.45370837,2027.0,2026.7,0.0011]
[1772139412090,0.45370837,2026.6,2026.4,0.0011]
[1772139412383,0.45370837,2026.6,2026.4,1.23480621]
[1772139413894,0.45370837,2027.0,2026.5,0.48357114]
[1772139414573,0.45470837,2027.1,2026.5,0.48357114]
[1772139415975,0.45470837,2027.1,2026.6,1.71826435]
[1772139416187,0.45470837,2027.0,2026.6,1.71826435]
[1772139417975,0.001,2027.0,2026.7,0.48357114]
[1772139418788,0.001,2027.1,2026.8,0.48357114]
[1772139421191,0.001,2027.1,2027.0,0.48357114]
[1772139421492,0.45370837,2027.7,2027.0,0.48357114]
[1772139425303,1.23283873,2027.9,2027.1,1.23328893]
[1772139425501,0.45370837,2028.0,2027.2,0.48357114]
[1772139427501,0.45370837,2027.8,2027.4,0.48357114]
[1772139427799,0.45370837,2027.7,2026.9,1.71698176]
[1772139427976,0.45370837,2027.7,2027.0,0.48357114]
[1772139428903,0.45370837,2027.7,2027.2,0.0011]
[1772139429198,0.45470837,2027.5,2027.2,0.0011]
[1772139429378,0.45470837,2027.5,2027.1,1.34537437]
[1772139431706,0.45470837,2027.5,2027.2,0.46702162]
[1772139434004,0.001,2027.5,2027.2,1.23321747]
[1772139434204,0.001,2027.5,2027.3,0.46702162]
[1772139434904,0.46944914,2027.5,2027.2,1.23321747]
[1772139435107,0.46944914,2027.5,2027.2,0.46702162]
[1772139436193,0.001,2027.5,2027.3,0.46702162]
[1772139438694,0.46844914,2027.4,2027.0,0.46812162]
[1772139439012,0.46944914,2027.5,2027.0,0.46812162]
[1772139440812,0.46944914,2027.5,2027.1,1.23328893]
[1772139441013,0.46944914,2027.5,2027.2,0.46812162]
[1772139441388,0.001,2027.5,2027.2,0.46812162]
[1772139441813,0.46844914,2027.8,2027.3,0.46702162]
[1772139442110,0.40933176,2028.0,2027.3,0.46702162]
[1772139442111,0.46844914,2027.9,2027.3,0.46702162]
[1772139442519,0.40933176,2027.8,2027.3,0.46702162]
[1772139442686,0.46844914,2027.7,2027.2,0.0011]
[1772139442883,0.46844914,2027.7,2027.2,0.46812162]
[1772139445016,0.46844914,2027.6,2027.2,1.70130875]
[1772139445590,0.46844914,2027.6,2027.3,0.46702162]
[1772139446007,0.46844914,2027.5,2027.2,0.0011]
[1772139447621,0.46844914,2027.5,2027.2,0.46812162]
[1772139452315,0.46844914,2027.5,2027.2,1.70134878]
[1772139452711,4.93100687,2028.0,2027.3,0.46702162]
[1772139452712,0.46844914,2027.9,2027.3,0.46702162]
[1772139452902,1.70125892,2027.9,2027.3,0.46702162]
[1772139453602,0.46844914,2027.9,2027.3,0.46702162]
[1772139453805,1.70125326,2027.9,2027.3,0.46702162]
[1772139454011,0.46844914,2027.9,2027.3,0.46702162]
[1772139454422,0.46844914,2027.8,2027.5,0.46702162]
[1772139456010,0.46844914,2027.9,2027.5,0.46702162]
[1772139457193,1.23284993,2027.9,2027.5,0.46702162]
[1772139457521,0.48127389,2027.8,2027.5,0.46702162]
[1772139458318,0.48127389,2027.8,2027.5,1.70006313]
[1772139458813,0.2727901,2027.9,2027.6,0.46678919]
[1772139459196,0.75406399,2027.9,2027.6,0.46678919]
[1772139459396,1.98687171,2027.9,2027.6,0.46678919]
[1772139460525,0.75406399,2027.9,2027.6,0.46678919]
[1772139461122,1.98686855,2027.9,2027.6,0.46678919]
[1772139461323,0.48127389,2027.9,2027.6,0.46678919]
[1772139463325,0.75406399,2027.9,2027.6,0.46678919]
[1772139463912,1.98686959,2027.9,2027.6,0.46678919]
[1772139464524,0.75406399,2027.9,2027.6,0.46678919]
[1772139465015,0.001,2027.7,2027.6,0.46678919]
[1772139465436,1.23279013,2028.0,2027.7,0.45892797]
[1772139465823,1.99298031,2028.1,2027.7,0.45892797]
[1772139466133,0.48646369,2028.0,2027.7,0.45892797]
[1772139467331,0.75925379,2027.9,2027.6,0.45892797]
[1772139467693,0.48646369,2027.8,2027.5,0.46002797]
[1772139468632,0.75925379,2027.9,2027.6,0.45892797]
[1772139471750,0.48646369,2027.6,2027.3,0.0011]
[1772139471908,0.75925379,2027.5,2027.2,0.46002797]
[1772139472418,0.2727901,2027.5,2027.2,0.46002797]
[1772139474132,0.75925379,2027.7,2027.3,0.45892797]
[1772139475437,1.71933028,2027.8,2027.3,0.45892797]
[1772139475608,0.75925379,2027.7,2027.3,0.45892797]
[1772139475808,0.48646369,2027.6,2027.2,1.23427902]
[1772139476032,0.48646369,2027.6,2027.2,1.69320699]
[1772139476531,0.48646369,2027.6,2027.3,0.45892797]
[1772139476703,0.48646369,2027.6,2027.4,0.0011]
[1772139479530,0.001,2027.7,2027.5,0.45892797]
[1772139480318,0.48746369,2027.7,2027.4,0.0011]
[1772139480524,0.76025379,2027.7,2027.4,0.46002797]
[1772139480732,1.99319162,2027.7,2027.4,0.46002797]
[1772139481833,0.48746369,2027.7,2027.4,0.46002797]
[1772139482331,0.001,2027.7,2027.5,0.45892797]
[1772139482538,1.7201759,2028.1,2027.6,0.45892797]
[1772139482832,1.992966,2028.1,2027.6,0.45892797]
[1772139483019,0.48646369,2028.0,2027.6,0.45892797]
[1772139483206,0.76025379,2028.1,2027.6,0.45892797]
[1772139483409,0.001,2028.3,2027.9,0.45892797]
[1772139483835,0.76025379,2028.3,2027.7,0.45892797]
[1772139484010,0.2727901,2027.9,2027.5,1.69194217]
[1772139484213,0.75925379,2027.9,2027.5,1.69194217]
[1772139484414,0.2727901,2027.9,2027.6,0.45892797]
[1772139484623,0.48646369,2028.2,2027.7,0.45892797]
[1772139485014,0.2727901,2028.0,2027.7,0.45892797]
[1772139485516,0.75925379,2028.2,2027.7,0.45892797]
[1772139486239,0.75925379,2028.2,2027.8,1.2328632]
[1772139486412,0.75925379,2028.2,2027.8,0.45892797]
[1772139486821,1.99188104,2028.2,2027.8,0.45892797]
[1772139487035,0.48646369,2028.1,2027.8,0.45892797]
[1772139487439,0.48646369,2028.2,2027.8,0.45892797]
[1772139488842,0.48646369,2028.2,2027.8,1.69178947]
[1772139489042,0.48646369,2028.2,2027.9,0.0011]
[1772139489342,0.76025379,2028.3,2027.9,0.0011]
[1772139489520,1.99281827,2028.3,2028.0,0.45892797]
[1772139489925,1.99281474,2028.3,2028.0,0.45892797]
[1772139491722,0.76025379,2028.3,2028.0,0.45892797]
[1772139491921,1.99282081,2028.3,2028.0,0.45892797]
[1772139492246,0.76025379,2028.3,2028.0,0.45892797]
[1772139492425,0.76025379,2028.3,2028.1,0.45827081]
[1772139492426,0.001,2028.3,2028.1,0.45827081]
[1772139493747,0.2737901,2028.3,2028.1,0.45827081]
[1772139494132,0.2737901,2028.3,2028.1,1.69095113]
[1772139494341,0.001,2028.3,2028.1,1.69095113]
[1772139494722,0.001,2028.3,2028.1,0.45827081]
[1772139494923,0.001,2028.3,2028.1,1.69094907]
[1772139495123,0.001,2028.3,2028.1,0.45827081]
[1772139495335,0.46495384,2028.8,2028.2,0.45827081]